Cogmind - Beta 14 @@@ ROGUE MODE // 2024.10.07 @ 19:39:06 Player: anastasia Result: Destroyed by G-47 Trooper with Particle Gun Performance ------------- Evolutions (2) 1000 Regions Visited (3) 600 Robots Destroyed (26) 130 Value Destroyed (832) 832 Prototype IDs (0) 0 Alien Tech Used (0) 0 Bonus (0) 0 TOTAL SCORE: 2562 Bonus ------- None Cogmind --------- Core Integrity 0/550 Matter 184/300 Energy 100/100 System Corruption 0% Temperature Cool (9) Movement Core (50) Location -8/Materials Parts ------- > --- POWER (1) -------- (None) > --- PROPULSION (4) --- (None) > --- UTILITY (4) ------ System Shield > --- WEAPON (2) ------- (None) > --- INVENTORY (5) ---- Light Ion Engine Medium Laser Small Laser Particle Gun Peak State ------------ > --- POWER ------------ Ion Engine > --- PROPULSION ------- Wheel Compact Wheel Compact Wheel Compact Wheel > --- UTILITY ---------- Improved Heat Sink Small Storage Unit System Shield > --- WEAPON ----------- High-powered Shotgun Improved Grenade Launcher > --- INVENTORY -------- Light Ion Engine Medium Laser Small Laser [Rating: 18] Favorites ----------- Power Ion Engine Engine Ion Engine Propulsion Compact Wheel Leg Aluminum Leg Wheel Compact Wheel Utility Small Storage Unit Device Improved Heat Sink Storage Small Storage Unit Hackware System Shield Weapon Medium Laser Energy Gun Medium Laser Ballistic Gun Light Assault Rifle Launcher Improved Grenade Launcher Build | -11 -10 -10 -8 ------- Run | Yrd Mat Sub Mat Slots Evolved 4 | . . . 4 Power . | . . . . Propulsion 2 | . . . 2 Utility 2 | . . . 2 Weapon . | . . . . Parts Attached 23 | 6 6 . 11 Power 3 | 1 2 . . Engine 3 | 1 2 . . Core . | . . . . Reactor . | . . . . Propulsion 9 | 2 2 . 5 Treads . | . . . . Leg 2 | . 2 . . Wheel 7 | 2 . . 5 Hover . | . . . . Flight . | . . . . Utility 4 | 1 1 . 2 Device 2 | . 1 . 1 Storage 1 | 1 . . . Processor . | . . . . Hackware 1 | . . . 1 Protection . | . . . . Artifact . | . . . . Weapon 7 | 2 1 . 4 Energy Gun 3 | 1 1 . 1 Energy Cannon . | . . . . Ballistic Gun 2 | 1 . . 1 Ballistic Cannon . | . . . . Launcher 2 | . . . 2 Special Weapon . | . . . . Impact Weapon . | . . . . Slashing Weapon . | . . . . Piercing Weapon . | . . . . Special Melee Weapon . | . . . . Unidentified Prototypes . | . . . . Parts Lost 14 | . 6 . 8 Power 3 | . 2 . 1 Propulsion 6 | . 2 . 4 Utility 3 | . 1 . 2 Weapon 2 | . 1 . 1 Highest Loss Streak 6 | . 5 . 6 To Critical Strikes . | . . . . Average Slot Usage (%) 74 | . 81 85 66 Engine 8 | . 10 14 6 Leg 4 | . 3 28 2 Wheel 17 | . 16 . 20 Device 6 | . 8 . 5 Storage 11 | . 14 14 8 Hackware 4 | . . . 8 Energy Gun 13 | . 16 28 9 Ballistic Gun 5 | . 10 . 3 Peak Build Rating 18 | 6 7 6 18 Average Rating 8 | 5 5 6 11 On Entrance 4 | . 6 6 6 Naked Turns . | . . . . Heaviest Build 20 | 11 13 13 20 Greatest Support 58 | 26 26 20 58 Greatest Overweight (x) 3 | . 3 . 3 Average Overweight (x) . | . . . . Largest Inventory Capacity 8 | 8 8 8 8 Average Capacity 7 | 7 8 8 7 Most Carried 6 | 3 4 2 6 Average Carried 2 | 1 2 2 2 Final Capacity 8 | 8 8 8 5 Final Carried 4 | 3 2 2 4 Class Distribution -------------------- 100% | Mutant Dominant Class ---------------- Mutant | -10/Materials Mutant | -10/Subcaves Mutant | -8/Materials Resources | -11 -10 -10 -8 ----------- Run | Yrd Mat Sub Mat Matter Collected 497 | 254 77 . 166 Remotely . | . . . . Salvage Created 822 | 117 342 . 363 Parts 43 | 6 16 . 21 Haulers Intercepted . | . . . . Recyclers Shooed . | . . . . Parts Field Recycled . | . . . . Retrieved Matter . | . . . . Parts Self-Destructed . | . . . . Prevented . | . . . . Kills | -11 -10 -10 -8 ------- Run | Yrd Mat Sub Mat Combat Hostiles Destroyed 17 | . 7 . 10 Guns 12 | . 7 . 5 AOE 5 | . . . 5 Classes Destroyed 8 | 2 3 . 3 Worker 1 | . . . 1 Builder 3 | . 1 . 2 Tunneler 2 | 2 . . . Recycler 1 | 1 . . . Mechanic 1 | . . . 1 Watcher 1 | . 1 . . Grunt 16 | . 7 . 9 Duelist 1 | . . . 1 Best Kill Streak 9 | 3 4 . 9 Combat Bots Only 5 | . 4 . 5 Max Kills in Single Turn 2 | 1 1 . 2 Gunslinging . | . . . . Exploded 2 | . . . 2 Melee . | . . . . Uniques/NPCs Destroyed . | . . . . Combat | -11 -10 -10 -8 -------- Run | Yrd Mat Sub Mat Hostile Shots Fired 121 | . 52 1 68 Missed 23 | . 10 . 13 Damage Taken 1681 | . 515 23 1143 Core 717 | . 155 . 562 Absorbed by Shields . | . . . . Core Remaining (%) 69 | 100 . 38 . Volleys Fired 69 | 11 29 . 29 Largest 2 | 2 2 . 2 Hottest 90 | 70 90 . 90 Shots Fired 122 | 22 55 . 45 Gun 113 | 22 55 . 36 Cannon . | . . . . Launcher 9 | . . . 9 Special . | . . . . Kinetic 51 | 11 19 . 21 Thermal 62 | 11 36 . 15 Explosive 9 | . . . 9 Electromagnetic . | . . . . Robot Hit Streak 17 | 7 9 . 17 Robot Miss Streak 3 | 3 2 . 3 Penetration Max . | . . . . Secondary Targets 1 | . 1 . . Max Gunslinging Chain 1 | . 1 . . Shots Hit Robots 80 | 12 36 . 32 Core Hits 55 | 4 19 . 32 Critical Kills 1 | 1 . . . Critical Parts Destroyed 1 | . . . 1 Critical Strikes 4 | 1 2 . 1 Burn 2 | . 2 . . Destroy 2 | 1 . . 1 Melee Attacks . | . . . . Impact . | . . . . Slashing . | . . . . Piercing . | . . . . Sneak Attacks . | . . . . Combat Hostiles . | . . . . Follow-up Attacks . | . . . . Damage Inflicted 1897 | 142 394 . 1361 Guns 1015 | 142 394 . 479 Cannons . | . . . . Explosions 882 | . . . 882 Melee . | . . . . Ramming . | . . . . Kinetic 455 | 40 87 . 328 Thermal 560 | 102 307 . 151 Explosive 882 | . . . 882 Electromagnetic . | . . . . Impact . | . . . . Slashing . | . . . . Piercing . | . . . . Highest Corruption . | . . . . Average Corruption . | . . . . Corruption Purged . | . . . . Corruption Blocked . | . . . . Overload Shots . | . . . . Overflow Damage 61 | . . . 61 Projectiles . | . . . . Explosions 61 | . . . 61 Melee . | . . . . Knockbacks . | . . . . Impact . | . . . . Kinetic . | . . . . Secondary . | . . . . Self-Inflicted Damage 237 | . . . 237 Shots 4 | . . . 4 Rammed . | . . . . Targets Rammed . | . . . . Kicked . | . . . . Crushed . | . . . . Highest Temperature 206 | 90 206 . 20 Average Temperature 65 | 35 80 . 12 Received Heat Transfer 828 | . 288 . 540 Siege Activations . | . . . . Robots Corrupted . | . . . . Combat Hostiles . | . . . . Parts Fried . | . . . . Impact Corruptions . | . . . . Robots Melted . | . . . . Combat Hostiles . | . . . . Parts Melted 7 | 1 5 . 1 Heat Transferred 1679 | 296 1013 . 370 Parts Sabotaged . | . . . . Parts Stolen . | . . . . Parts Stripped . | . . . . Power Chain Reactions . | . . . . Alert | -11 -10 -10 -8 ------- Run | Yrd Mat Sub Mat Peak Influence 335 | 15 146 . 335 Initial 39 | . 9 . 39 Average 85 | 5 66 . 119 Maximum Alert Level 1 | . . . 1 Low Security (%) 87 | 100 100 . 75 Level 1 12 | . . . 24 Level 2 . | . . . . Level 3 . | . . . . Level 4 . | . . . . Level 5 . | . . . . High Security . | . . . . Max Security . | . . . . Squads Dispatched 4 | . 1 . 3 Investigation 1 | . . . 1 Extermination . | . . . . Reinforcement 3 | . 1 . 2 Assault . | . . . . Garrison . | . . . . Intercept . | . . . . Searches Triggered . | . . . . Construction Impeded 1 | . . . 1 Haulers Reinforced . | . . . . Active Scanning Responses . | . . . . Cargo Convoy Interrupts . | . . . . Stealth | -11 -10 -10 -8 --------- Run | Yrd Mat Sub Mat Distress Signals . | . . . . Communications Jammed . | . . . . Distress Signals . | . . . . Times Spotted 22 | . 8 1 13 Peak Tracking Total 6 | . 4 2 6 Tactical Retreats . | . . . . Traps | -11 -10 -10 -8 ------- Run | Yrd Mat Sub Mat Traps Triggered . | . . . . Indirectly . | . . . . Trap Hack Attempts . | . . . . Triggered . | . . . . Disarmed . | . . . . Reprogrammed . | . . . . Reused . | . . . . Traps Extracted . | . . . . Installed . | . . . . Triggered . | . . . . Machines | -11 -10 -10 -8 ---------- Run | Yrd Mat Sub Mat Machines Disabled 3 | . . . 3 Max in Single Turn 1 | . . . 1 Machines Repaired . | . . . . Machines Dismantled . | . . . . Machines Sabotaged . | . . . . Overloaded Fab Kills . | . . . . Hacking | -11 -10 -10 -8 --------- Run | Yrd Mat Sub Mat Machines Accessed 2 | . . . 2 Terminals 2 | . . . 2 Fabricators . | . . . . Repair Stations . | . . . . Recycling Units . | . . . . Scanalyzers . | . . . . Garrison Access . | . . . . Total Hacks 9 | . . . 9 Successful 3 | . . . 3 Failed 6 | . . . 6 Catastrophic 2 | . . . 2 Database Lockouts . | . . . . Manual 4 | . . . 4 Terminals 9 | . . . 9 Fabricators . | . . . . Repair Stations . | . . . . Recycling Units . | . . . . Scanalyzers . | . . . . Garrison Access . | . . . . Terminal Hacks 3 | . . . 3 Unreport Threat 1 | . . . 1 Dispatch Records 1 | . . . 1 Recall Investigation 1 | . . . 1 Fabricator Hacks . | . . . . Repair Station Hacks . | . . . . Recycling Unit Hacks . | . . . . Scanalyzer . | . . . . Garrison Access Hacks . | . . . . Unauthorized Hacks . | . . . . Terminals . | . . . . Fabricators . | . . . . Repair Stations . | . . . . Recycling Units . | . . . . Scanalyzers . | . . . . Garrison Access . | . . . . Data Cores Recovered . | . . . . Used . | . . . . Hacking Detections 2 | . . . 2 Full Trace Events 1 | . . . 1 Feedback Events . | . . . . Feedback Blocked . | . . . . Robot Schematics Acquired . | . . . . Robots Built . | . . . . Authchips . | . . . . Time . | . . . . Total Robot Build Rating . | . . . . Part Schematics Acquired . | . . . . Parts Built . | . . . . Authchips . | . . . . Time . | . . . . Total Part Build Rating . | . . . . Parts Repaired . | . . . . Time . | . . . . Parts Recycled . | . . . . Recycled Matter . | . . . . Retrieved Matter . | . . . . Retrieved Components . | . . . . Parts Scanalyzed . | . . . . Part Schematics Acquired . | . . . . Parts Damaged . | . . . . Bothacking | -11 -10 -10 -8 ------------ Run | Yrd Mat Sub Mat Used RIF Installer . | . . . . Robots Hacked . | . . . . Non-combat . | . . . . Combat . | . . . . Robot Hacks Applied . | . . . . Relay Couplers Released . | . . . . Fabnet Peak Effective % . | . . . . Robots Rewired . | . . . . Allies Hacked . | . . . . Hacks Repelled . | . . . . Allies | -11 -10 -10 -8 -------- Run | Yrd Mat Sub Mat Total Allies . | . . . . Largest Group . | . . . . Highest-Rated Group . | . . . . Highest-Rated Ally . | . . . . Total Orders . | . . . . Ally Attacks . | . . . . Total Damage . | . . . . Kills . | . . . . Allies Corrupted . | . . . . Allies Melted . | . . . . Intel | -11 -10 -10 -8 ------- Run | Yrd Mat Sub Mat Robot Analysis Total . | . . . . Derelict Logs Recovered 1 | . . 1 . Drone Launches . | . . . . Drone Recoveries . | . . . . Exploration | -11 -10 -10 -8 ------------- Run | Yrd Mat Sub Mat Turns Passed 834 | 89 296 63 386 Spaces Moved 439 | 53 115 53 218 Core 51 | 1 23 . 27 Treads . | . . . . Legs 91 | . 8 53 30 Wheels 297 | 52 84 . 161 Hover . | . . . . Flight . | . . . . Fastest Speed 50 | 50 90 120 93 Average Speed 103 | 88 109 120 100 Slowest Speed 200 | 90 200 120 200 Overloaded Moves . | . . . . Propulsion Burnouts . | . . . . Robots Hopped . | . . . . Cave-ins Triggered . | . . . . Exploration Rate (%) 12 | 4 21 3 23 Regions Visited 3 Branch Regions 1 Pre-discovered Areas 1 | . . 1 . Known Exits Taken . | . . . . Unknown Exits Taken 3 | 1 1 1 . Scrap Searched . | . . . . Spaces Dug . | . . . . Terrain Destroyed 110 | . . . 110 Melee . | . . . . Projectile . | . . . . AOE 110 | . . . 110 Terrain Rammed . | . . . . Walls Destroyed . | . . . . Machines Disabled . | . . . . Actions | -11 -10 -10 -8 --------- Run | Yrd Mat Sub Mat Total 696 | 72 234 52 338 Wait 149 | . 80 . 69 Move 436 | 52 114 52 218 Hop . | . . . . Pick Up 16 | 3 5 . 8 Fast Attach 6 | 6 . . . Attach 12 | . 6 . 6 Detach 1 | . . . 1 Swap 5 | . . . 5 Drop 2 | . . . 2 Fire 69 | 11 29 . 29 Melee . | . . . . Ram . | . . . . Kick . | . . . . Crush . | . . . . Escape Stasis . | . . . . Rewire . | . . . . Trap . | . . . . Miscellaneous . | . . . . Route ------- -11/Scrapyard -10/Materials -10/Subcaves -8/Materials History --------- Turn | Location | Event 16 | -11/Scrapyard | Discovered new exit (range 16) 90 | -11/Scrapyard | Entered Materials 298 | -10/Materials | Core integrity fell below 50% 314 | -10/Materials | Build established: Mutant 333 | -10/Materials | Lost 5 parts (1p2n1u1w) 358 | -10/Materials | Discovered new exit (range 7) 386 | -10/Materials | Entered Subcaves 386 | -10/Subcaves | Discovered new exit (range 6) 402 | -10/Subcaves | Learned location of Storage (-9) 449 | -10/Subcaves | Entered Materials 449 | -8/Materials | Evolved 4 slots: Propulsion x2, Utility x2 768 | -8/Materials | Core integrity fell below 50% 790 | -8/Materials | Lost 6 parts (1p3n1u1w) 810 | -8/Materials | Core integrity fell below 20% 835 | -8/Materials | Destroyed by G-47 Trooper with Particle Gun Last Messages --------------- 00797_ The unstable cave ceiling collapses. 00798_ K-01 Serf collects debris. 00799_ The unstable cave ceiling collapses. 00802_ K-01 Serf collects debris. 00807_ Critical hit (Burn: +37). 00809_ K-01 Serf collects debris. 00810_ The unstable cave ceiling collapses. 00811_ Sml. Storage Unit destroyed. 00812_ K-01 Serf collects debris. 00813_ Critical hit (Burn: +37). 00816_ K-01 Serf collects debris. 00817_ U-05 Engineer builds a Door. 00819_ K-01 Serf collects debris. 00822_ U-05 Engineer lays Concrete. 00824_ K-01 Serf collects debris. 00824_ U-05 Engineer builds a Wall. 00825_ The unstable cave ceiling collapses. 00826_ K-01 Serf collects debris. 00832_ The unstable cave ceiling collapses. 00832_ G-47 Trooper crushed by falling debris. Map ----- +----------------------------------------------------+ | ????????????????????????????????????????????????? | | ????????????????????????????????????????????????? | | ????????????????????????????????????????????????? | | ???#????????????????????????????????????????????? | | ???# ???????????????????????????????????????????? | | ???# ???????????????????????????????????????????? | | ???# ########+#####?????????????????????????????? | | ???# ???????????????????????????? | | ???# ??????????????????????????? | | ???# """ """ ? ?????????????????????????? | | ???# """ """ ?????????????????????????? | | ???# """ """ ?? ?????????????????????????? | | ???# #????? #????????????????????????? | | ???# #????? #????????????????????????? | | ???# """ #????? +????????????????????????? | | ???# """ #????? #????????????????????????? | | ???# "T" """ !#????# #????????????????????????? | | ???# #????# #?????? ????????????????? | | ???# #????# #????? ""????????????????? | | ???# ## /## ###### #????? """ #?????????????? | | ???# = % ## #????T """ +?????????????? | | ???# # !% #####" #?????????????? | | ???# = = # ! !#?????????????? | | ???# | # ##???????????????? | | ???# # =## ##### #???????????????? | | ???# # g@ #! ##???????????????? | | ???# # = %g %%*+ ?????????????? | | ???# ## # ##### ##???????????????? | | ???# # ## # # #????????????????? | | ???# ## ## # # #????????????????? | | ???# #???### k " ###????????????????? | | ???# #?????###### """" ###??????????????????? | | ???# #??????????# #????????????????????? | | ???# ############ [ ] #????????????????????? | | ??## ## ! ########????????????????????? | | ??# # "" #???????????????????????????? | | ??# # "Y #???????????????????????????? | | ??# # "" #???????????????????????????? | | ??# T + """ #???????????????????????????? | | ??# # """ #???????????????????????????? | | ??# # """ #???????????????????????????? | | ??# # #???????????????????????????? | | ??### #############???????????????????????????? | | ????# #???????????????????????????????????????? | | ????# #########???????????????????????????????? | | ????# ## = T #???????????????????????????????? | | ???## ## #???????????????????????????????? | | ???# #= """#???????????????????????????????? | | ???# # """#???????????????????????????????? | | ???# + """#???????????????????????????????? | +----------------------------------------------------+ Best States ------------- Heat Dissipation 45 Energy Generation 10 Energy Capacity 250 Matter Stores 300 Matter Capacity 300 Sight Range 16 Terrain Scan Density 10 Evasion (%) 55 Defensive Hacking 10 Item Schematics ----------------- None Robot Schematics ------------------ None Fabricated ------------ Nothing Alien Tech Used ----------------- None Achievements -------------- None Challenges ------------ None Game ------ Seed HoverDrainedModule Manual? 0 Play Time 00:09:19 Cumulative 14.7 hours Start 2024.10.07 @ 19:30:48 End 2024.10.07 @ 19:39:06 Sessions 1 Manual Loads 0 Difficulty Rogue Special Mode None Game No. 30 Rogue 22 Adventurer 8 Explorer 0 Win Type - Total 0 Types 0/0/0/0/0/0/0/0/0 Lore% 11 Gallery% 20 Achievement% 19 Wizard Run 0 Options --------- Layout 1 ASCII 0 Keyboard 0 Movement Mouse Keybinds 1 Fullscreen 1 Font 32/SmallcapsGlow Map View 50x35 Zoom Use 0% Tactical HUD 1 Map Filters NONE Filters NONE Steam 1 RUN: 6e0397d8-f309-4cc9-9fa6-8672ff675ec6